bitfinex/quotes_SOLUSD_20240614
["timestamp","ask_amount","ask_price","bid_price","bid_amount"]
[1718333465210,8.6394,148.04,148.0,0.51]
[1718333465506,131.60313078,148.12,148.0,0.51]
[1718333465507,2.499,148.06,148.01,0.17]
[1718333465792,31.60313078,148.12,148.02,0.17]
[1718333465793,2.4991,148.05,148.02,0.17]
[1718333466000,2.499,148.06,148.02,0.17]
[1718333466382,6.14,148.07,148.02,0.17]
[1718333467001,4.9973,148.08,148.02,0.17]
[1718333467172,2.499,148.06,148.02,0.17]
[1718333467381,4.9968,148.1,148.02,0.17]
[1718333467714,4.9968,148.1,148.04,0.17]
[1718333467901,4.9968,148.1,148.04,0.68]
[1718333470404,2.499,148.06,148.04,0.68]
[1718333471196,2.4989,148.07,148.04,0.68]
[1718333471715,2.4987,148.08,148.04,0.68]
[1718333472208,2.4988,148.07,148.04,0.68]
[1718333473279,18.41,148.14,148.04,0.17]
[1718333473280,2.499,148.06,148.04,0.17]
[1718333473477,2.4991,148.05,148.03,16.1458]
[1718333473900,100.0,148.11,148.03,16.1458]
[1718333474088,2.4993,148.04,148.03,16.1458]
[1718333474293,2.4993,148.04,148.03,16.3158]
[1718333474482,2.499,148.06,148.03,16.3158]
[1718333474683,2.4991,148.05,148.03,16.3158]
[1718333475814,100.0,148.09,147.99,15.9364]
[1718333475985,2.4997,148.02,147.99,15.9364]
[1718333476396,100.0,148.07,147.99,15.9364]
[1718333476793,2.4993,148.04,147.99,15.9364]
[1718333477190,2.4992,148.05,147.99,18.4365]
[1718333477395,2.4993,148.04,147.99,15.9364]
[1718333477588,20.0,148.07,148.0,0.17]
[1718333477914,20.0,148.07,148.0,0.68]
[1718333477915,2.4989,148.07,148.0,0.68]
[1718333478292,2.499,148.06,148.0,3.1799]
[1718333479514,2.4991,148.05,148.0,0.68]
[1718333483713,100.0,148.09,147.99,15.9364]
[1718333484084,2.4998,148.02,147.99,15.9364]
[1718333484305,2.4998,148.01,147.99,15.9364]
[1718333484698,2.4997,148.02,147.99,15.9364]
[1718333485497,2.4997,148.02,148.0,0.34]
[1718333485815,2.4995,148.03,148.0,0.51]
[1718333486002,2.4994,148.04,148.0,0.51]
[1718333486207,20.0,148.08,148.01,0.34]
[1718333486711,2.4992,148.05,148.01,0.34]
[1718333486889,6.14,148.05,148.01,0.34]
[1718333487092,2.4996,148.02,148.0,6.48]
[1718333487291,6.14,148.04,148.0,0.34]
[1718333487490,2.4997,148.02,148.0,0.34]
[1718333488912,2.4997,148.02,147.99,16.1064]
[1718333489211,2.4999,148.01,147.99,15.9364]
[1718333490088,2.4997,148.02,147.99,15.9364]
[1718333490503,2.4995,148.03,148.0,0.17]
[1718333490707,2.4995,148.03,148.0,0.68]
[1718333491491,6.14,148.05,148.0,0.68]
[1718333491816,2.4995,148.03,148.0,0.68]
[1718333492924,4.9982,148.06,148.0,6.82]
[1718333492925,2.4994,148.04,148.0,6.82]
[1718333493220,11.1384,148.05,148.0,0.68]
[1718333493430,2.4997,148.02,148.0,0.51]
[1718333493605,2.5,148.0,147.99,15.9364]
[1718333493824,6.14,148.01,147.95,23.0077]
[1718333493998,2.5003,147.98,147.95,23.0077]
[1718333494323,2.5005,147.97,147.95,23.0077]
[1718333494721,24.56,148.05,147.95,23.0077]
[1718333494722,2.5004,147.98,147.95,23.0077]
[1718333495125,4.9998,148.01,147.95,23.0077]
[1718333495294,4.9991,148.03,147.95,23.0077]
[1718333495499,2.5,148.0,147.95,23.0077]
[1718333495915,2.5,148.0,147.96,0.34]
[1718333496106,2.5,148.0,147.97,0.17]
[1718333496330,2.5,148.0,147.97,0.34]
[1718333496523,2.4998,148.01,147.97,0.34]
[1718333496722,2.4998,148.01,147.99,0.17]
[1718333496903,2.4998,148.01,147.99,0.34]
[1718333497102,2.5001,148.0,147.98,0.17]
[1718333497422,2.5001,148.0,147.97,0.17]
[1718333498295,2.4999,148.01,147.97,0.17]
[1718333499011,2.4996,148.03,147.97,0.17]
[1718333499225,16.4137,148.08,147.97,0.17]
[1718333499628,2.4996,148.03,147.97,0.17]
[1718333499833,20.0,148.07,147.97,0.17]
[1718333499834,2.4997,148.02,147.97,0.17]
[1718333500201,2.4993,148.05,148.0,0.17]
[1718333500499,18.43,148.1,148.0,0.68]
[1718333500699,2.4992,148.05,148.02,0.17]
[1718333501006,2.4993,148.04,148.02,0.17]
[1718333502325,2.4994,148.03,148.02,0.17]
[1718333504028,2.4991,148.05,148.02,0.17]
[1718333504227,2.499,148.06,148.02,0.68]
[1718333504435,15.7235,148.12,148.02,0.68]
[1718333504620,2.4989,148.07,148.02,0.68]
[1718333504804,6.114,148.14,148.02,3.1795]
[1718333504805,2.4986,148.08,148.02,3.1795]
[1718333505131,2.4988,148.07,148.02,0.68]
[1718333505819,4.9967,148.1,148.02,0.68]
[1718333506122,6.114,148.14,148.02,0.68]
[1718333506429,2.499,148.06,148.02,0.68]
[1718333507301,2.4988,148.07,148.02,0.68]
[1718333507729,2.4987,148.08,148.02,3.1796]
[1718333508405,2.4988,148.07,148.02,0.68]
[1718333508850,2.4987,148.08,148.02,3.1796]
[1718333510332,2.4985,148.09,148.03,2.4994]
[1718333510505,2.4986,148.08,148.04,0.68]
[1718333510707,2.4986,148.08,148.04,0.51]
[1718333511028,2.4985,148.09,148.05,0.17]
[1718333511223,2.4986,148.08,148.05,0.17]
[1718333511430,2.4985,148.09,148.05,0.17]
[1718333511942,120.0,148.14,148.01,21.9985]
[1718333512235,2.4992,148.05,148.01,21.9985]
[1718333512940,2.499,148.06,148.01,24.4983]
[1718333513136,2.499,148.06,148.01,21.9985]
[1718333513437,2.499,148.06,148.02,0.68]
[1718333513827,2.4988,148.07,148.02,0.68]
[1718333514632,4.9967,148.1,148.02,3.1796]
[1718333514833,2.4987,148.08,148.02,3.1796]
[1718333515030,2.4988,148.07,148.02,0.68]
[1718333515244,2.4983,148.1,148.05,16.0297]
[1718333515421,7.05109336,148.15,148.1,0.17]
[1718333515422,9.54849336,148.15,148.1,0.17]
[1718333515618,2.4978,148.13,148.1,2.02670236]
[1718333515816,2.4981,148.12,148.1,0.34]
[1718333516014,2.4983,148.1,148.09,0.17]
[1718333516237,2.4985,148.09,148.07,0.17]
[1718333516439,2.4983,148.1,148.07,0.34]
[1718333516617,2.4983,148.1,148.08,0.34]
[1718333518238,2.4984,148.1,148.08,0.34]
[1718333519043,2.4988,148.07,148.06,0.17]
[1718333519230,2.4988,148.07,148.06,0.51]
[1718333519625,2.4987,148.08,148.06,0.51]
[1718333521139,8.6285,148.09,148.06,0.51]
[1718333521544,6.13,148.09,148.06,0.34]
[1718333521842,2.4993,148.04,148.01,15.7451]
[1718333522017,6.13,148.05,148.01,15.7451]
[1718333522218,100.0,148.11,148.0,6.1149]
[1718333522219,2.4996,148.02,148.0,6.1149]
[1718333522921,100.0,148.11,148.0,6.1149]
[1718333522922,2.4995,148.03,148.0,6.1149]
[1718333523543,2.4991,148.05,148.0,6.1149]
[1718333524133,2.4993,148.04,148.0,6.1149]
[1718333524547,2.4993,148.04,148.02,0.17]
[1718333527322,34.8332,148.08,147.97,15.3412]
[1718333527644,2.5002,147.99,147.97,15.3412]
[1718333529346,6.4058,148.03,147.93,15.2816]
[1718333529550,38.41,148.02,147.93,15.2816]
[1718333531152,38.41,148.02,147.94,0.34]
[1718333532145,20.0,148.02,147.94,0.34]
[1718333532347,20.0,148.02,147.95,0.34]
[1718333532524,21.7797,148.03,147.96,0.34]
[1718333532718,15.3739,148.03,147.98,0.17]
[1718333532950,15.3739,148.03,147.96,0.17]
[1718333533152,15.3739,148.03,147.96,0.34]
[1718333533327,15.3739,148.03,147.97,0.51]
[1718333533952,15.3739,148.03,147.96,0.17]
[1718333534451,15.3739,148.03,147.96,0.34]
[1718333535332,15.3739,148.03,147.97,0.17]
[1718333535534,15.3739,148.03,147.97,0.34]
[1718333537550,15.3739,148.03,147.98,0.17]
[1718333537757,18.41,148.04,147.98,0.34]
[1718333537955,148.29912429,148.07,147.98,0.34]
[1718333538160,48.29912429,148.07,147.99,0.17]
[1718333538330,29.88912429,148.07,147.99,0.17]
[1718333538529,20.0,148.06,147.99,0.34]
[1718333543552,100.0,148.05,147.94,0.17]
[1718333543737,100.0,148.05,147.94,0.68]
[1718333543936,20.0,148.04,147.94,0.68]
[1718333544963,38.41,148.04,147.94,0.68]
[1718333545257,38.41,148.04,147.93,15.2816]
[1718333546543,100.0,148.03,147.93,15.2816]
[1718333547066,20.0,148.02,147.93,15.2816]
[1718333547851,20.0,148.02,147.94,0.68]
[1718333548064,20.0,148.02,147.94,0.17]
[1718333548246,18.41,148.01,147.93,15.2816]
[1718333548670,20.0,148.0,147.93,15.2816]
[1718333552370,20.0,148.0,147.94,0.17]
[1718333552572,20.0,148.0,147.94,0.51]
[1718333554268,18.41,148.04,147.95,0.17]
[1718333554477,18.41,148.04,147.96,0.17]
[1718333554478,20.0,148.03,147.96,0.17]
[1718333554676,20.0,148.03,147.96,0.51]
[1718333554885,129.88945093,148.07,147.96,6.65]
[1718333555052,129.88945093,148.07,147.97,0.17]
[1718333555053,6.14,148.02,147.97,0.17]
[1718333555251,6.14,148.01,147.97,0.17]
[1718333555451,6.14,148.01,147.98,0.17]
[1718333556053,6.14,148.0,147.97,0.34]
[1718333556255,6.14,148.0,147.96,0.34]
[1718333556952,118.42,148.05,147.96,0.34]
[1718333557149,18.42,148.05,147.96,0.34]
[1718333557353,18.42,148.05,147.97,0.34]
[1718333557583,20.0,148.04,147.98,0.34]
[1718333560264,48.30945093,148.07,147.98,0.34]
[1718333560455,20.0,148.06,147.98,0.34]
[1718333565180,20.0,148.06,147.97,0.17]
[1718333565390,20.0,148.06,147.94,0.17]
[1718333565682,100.0,148.05,147.94,0.68]
[1718333566080,20.0,148.04,147.94,0.68]
[1718333567170,100.0,148.03,147.94,0.68]
[1718333570091,100.0,148.03,147.94,0.51]
[1718333570092,20.0,148.02,147.94,0.51]
[1718333571185,18.42,148.04,147.94,0.51]
[1718333571409,20.0,148.03,147.94,0.51]
[1718333571771,120.0,148.03,147.94,0.51]
[1718333574877,100.0,148.01,147.93,15.2816]
[1718333575196,20.0,148.0,147.93,15.2816]
[1718333576882,6.14,147.97,147.93,15.2816]
[1718333577066,20.0,148.0,147.94,0.17]
[1718333577270,20.0,148.0,147.94,0.51]
[1718333577471,26.14,147.99,147.94,0.51]
[1718333578283,6.14,147.98,147.94,0.51]
[1718333580470,137.12583982,148.05,147.94,0.51]
[1718333580699,112.56583982,148.05,147.94,6.65]
[1718333580884,6.14,148.0,147.94,6.65]
[1718333581082,20.0,148.04,147.95,6.31]
[1718333581286,20.0,148.04,147.96,6.65]
[1718333581485,20.0,148.04,147.99,15.1289]
[1718333581701,6.14,148.03,147.99,15.1289]
[1718333582494,367.34097738,148.09,147.99,15.1289]
[1718333582705,6.14,148.03,147.99,15.1289]
[1718333583291,374.39395323,148.09,147.99,15.1289]
[1718333583493,6.14,148.04,147.99,15.1289]
[1718333586004,6.14,148.03,147.99,15.1289]
[1718333586910,20.0,148.08,147.99,15.1289]
[1718333587198,6.14,148.03,147.99,15.1289]
[1718333587793,6.14,148.02,147.99,15.1289]
[1718333589505,6.14,148.03,147.99,15.1289]
[1718333589805,20.0,148.08,148.0,0.17]
[1718333589991,6.14,148.04,148.0,0.68]
[1718333590190,20.0,148.08,148.0,0.68]
[1718333590411,6.14,148.04,148.0,0.68]
[1718333590798,6.14,148.05,148.0,0.68]
[1718333591010,26.14,148.04,148.0,0.51]
[1718333591208,26.14,148.04,148.0,0.17]
[1718333591415,26.14,148.04,148.0,0.34]
[1718333591813,20.0,148.04,148.0,0.34]
[1718333592004,6.14,148.05,148.0,0.34]
[1718333593933,6.14,148.05,148.01,0.17]
[1718333594113,6.14,148.05,148.01,1.6902516]
[1718333594717,6.14,148.05,148.01,0.34]
[1718333596013,6.14,148.04,147.99,15.2989]
[1718333596204,6.14,148.04,147.99,15.1289]
[1718333599314,20.0,148.08,148.0,0.17]
[1718333599618,6.14,148.04,148.0,0.51]
[1718333600819,20.0,148.08,148.0,0.51]
[1718333601022,6.14,148.04,148.0,0.51]
[1718333601624,13.19282978,148.09,148.04,16.6028]
[1718333601826,6.14,148.08,148.04,16.6028]
[1718333602209,6.2828628,148.12,148.04,16.6028]
[1718333602412,24.56,148.12,148.04,16.6028]
[1718333603104,20.0,148.11,148.04,16.6028]
[1718333603620,20.0,148.11,148.05,0.17]
[1718333603933,7.05189295,148.13,148.05,0.51]
[1718333604117,6.14,148.11,148.06,6.14]
[1718333604315,6.14,148.11,148.05,1.6128608]
[1718333604822,6.14,148.11,148.05,7.7528608]
[1718333605335,8.70916296,148.16,148.05,0.51]
[1718333605545,8.70916296,148.16,148.05,6.65]
[1718333605729,20.0,148.15,148.05,6.65]
[1718333605912,6.14,148.11,148.05,6.65]
[1718333606744,6.14,148.08,148.04,16.7728]
[1718333607034,6.14,148.09,148.04,16.6028]
[1718333609227,6.14,148.08,148.04,16.6028]
[1718333609846,6.14,148.07,148.04,16.6028]
[1718333610013,6.14,148.06,148.04,16.6028]
[1718333610213,6.14,148.05,148.04,16.6028]
[1718333611447,6.14,148.06,148.04,16.6028]
[1718333612141,24.56,148.12,148.04,16.6028]
[1718333612341,100.0,148.14,148.04,16.6028]
[1718333612638,6.14,148.08,148.04,16.6028]
[1718333613536,24.56,148.12,148.04,16.6028]
[1718333614041,6.14,148.07,148.04,16.6028]
[1718333614249,100.0,148.1,148.04,16.6028]
[1718333614250,6.14,148.05,148.04,16.6028]
[1718333614453,6.14,148.05,148.03,6.5359]
[1718333614751,6.14,148.05,148.0,16.2015]
[1718333615630,100.0,148.08,148.0,16.2015]
[1718333615830,6.14,148.05,148.0,16.2015]
[1718333616851,100.0,148.08,148.0,16.2015]
[1718333617053,6.14,148.05,148.0,16.2015]
[1718333617552,20.0,148.07,148.0,16.2015]
[1718333617767,6.14,148.05,148.0,16.2015]
[1718333618563,20.0,148.07,148.0,16.2015]
[1718333619050,6.14,148.05,148.0,16.2015]
[1718333619632,124.56,148.05,148.0,16.2015]
[1718333619841,124.56,148.05,147.96,15.9734]
[1718333620060,20.0,148.04,147.96,15.9734]
[1718333620760,6.14,148.01,147.96,15.9734]
[1718333620969,6.14,148.01,147.97,0.17]
[1718333621260,6.14,148.01,147.96,15.9734]
[1718333621462,20.0,148.04,147.96,15.9734]
[1718333621758,6.14,148.01,147.96,15.9734]
[1718333622343,6.14,148.01,147.97,0.17]
[1718333623870,6.14,148.0,147.97,0.17]
[1718333624372,100.0,148.03,147.96,15.9734]
[1718333624575,6.14,147.98,147.96,15.9734]
[1718333625485,6.14,147.97,147.92,16.489]
[1718333625646,6.14,147.96,147.92,16.489]
[1718333625978,6.14,147.98,147.92,16.489]
[1718333626270,100.0,147.99,147.92,16.489]
[1718333626447,6.14,147.95,147.92,16.489]
[1718333626643,6.14,147.96,147.92,16.489]
[1718333627264,6.14,147.95,147.92,16.489]
[1718333627856,100.0,147.97,147.88,16.2434]
[1718333628158,6.14,147.92,147.88,16.2434]
[1718333629063,20.0,147.96,147.88,16.2434]
[1718333629284,6.14,147.92,147.89,0.68]
[1718333629970,20.0,147.96,147.89,0.68]
[1718333630170,6.14,147.94,147.89,0.68]
[1718333630464,6.14,147.93,147.89,0.68]
[1718333633464,124.56,147.98,147.89,0.68]
[1718333633647,6.14,147.93,147.89,0.68]
[1718333633848,7.05693751,147.99,147.9,6.14]
[1718333634072,375.839,148.04,147.92,0.17]
[1718333634270,122.739,148.04,147.92,6.4625]
[1718333634586,6.14,147.97,147.93,0.34]
[1718333634866,7.05558813,148.03,147.93,0.34]
[1718333635075,6.14,147.96,147.93,0.34]
[1718333635484,6.14,147.96,147.93,0.17]
[1718333635660,6.14,147.96,147.92,6.4625]
[1718333637062,6.14,147.95,147.92,6.4625]
[1718333637780,7.05558813,148.03,147.94,0.17]
[1718333638082,6.14,147.96,147.94,0.17]
[1718333638266,6.14,147.97,147.94,0.17]
[1718333640160,20.0,148.02,147.94,0.17]
[1718333640380,20.0,148.02,147.94,6.31]
[1718333640570,6.14,148.0,147.95,0.51]
[1718333640757,6.14,147.98,147.95,0.51]
[1718333641078,6.14,147.98,147.95,0.34]
[1718333641669,6.14,147.96,147.93,15.5923]
[1718333643278,20.0,148.02,147.93,21.7323]
[1718333643582,6.14,147.99,147.94,6.82]
[1718333643882,6.14,147.99,147.94,0.68]
[1718333644055,6.14,147.98,147.94,0.68]
[1718333644261,6.14,147.99,147.94,0.68]
[1718333649990,20.0,148.02,147.94,0.68]
[1718333650291,31.61607743,148.05,147.94,3.1809]
[1718333650476,7.05607743,148.05,147.97,0.17]
[1718333650671,6.14,148.02,147.97,0.68]
[1718333651259,6.14,148.0,147.97,0.68]
[1718333651461,6.14,148.0,147.97,0.51]
[1718333653466,6.14,147.99,147.97,0.51]
[1718333653692,6.14,147.99,147.93,21.7323]
[1718333653693,6.14,147.98,147.94,0.17]
[1718333653964,6.14,147.97,147.93,15.5923]
[1718333654190,6.14,147.96,147.93,15.5923]
[1718333654782,6.14,147.94,147.92,6.2925]
[1718333654982,6.3211,148.01,147.92,6.2925]
[1718333655195,6.14,147.95,147.92,6.2925]
[1718333656195,6.3211,148.01,147.92,6.2925]
[1718333656196,6.14,147.96,147.92,6.2925]
[1718333656565,6.14,147.95,147.92,6.2925]
[1718333659396,2.5011,147.93,147.92,6.4625]
[1718333659610,2.5011,147.93,147.92,6.8025]
[1718333660605,100.0,147.98,147.89,15.7972]
[1718333660777,6.14,147.91,147.89,15.7972]
[1718333662204,6.14,147.92,147.89,15.7972]
[1718333662710,6.14,147.91,147.89,15.7972]
[1718333663079,6.14,147.92,147.89,15.7972]
[1718333664137,35.00955429,148.02,147.9,0.34]
[1718333664426,6.14,147.96,147.92,0.17]
[1718333664597,6.14,147.96,147.92,0.34]
[1718333665597,6.14,147.94,147.91,0.17]
[1718333666413,6.14,147.93,147.9,0.34]
[1718333666583,6.14,147.93,147.9,0.17]
[1718333666783,107.0563617,148.0,147.9,0.68]
[1718333666994,6.14,147.93,147.9,0.68]
[1718333667405,6.14,147.93,147.9,1.88138637]
[1718333667715,6.14,147.94,147.9,1.88138637]
[1718333669586,6.14,147.94,147.9,0.68]
[1718333670124,24.56,147.98,147.9,0.34]
[1718333670125,6.14,147.93,147.9,0.34]
[1718333670315,6.14,147.92,147.9,0.17]
[1718333673705,6.14,147.92,147.89,15.7972]
[1718333675012,6.14,147.92,147.88,6.2954]
[1718333675189,6.14,147.9,147.85,22.2303]
[1718333676618,6.14,147.9,147.86,0.68]
[1718333678725,6.14,147.89,147.86,0.68]
[1718333681436,100.0,147.94,147.86,0.68]
[1718333681598,6.14,147.88,147.86,0.51]
[1718333681931,6.14,147.89,147.86,0.51]
[1718333682730,100.0,147.94,147.86,0.51]
[1718333683040,6.14,147.89,147.86,0.51]
[1718333684212,20.0,147.93,147.85,22.2303]
[1718333684538,6.14,147.88,147.85,15.7136]
[1718333684831,6.14,147.86,147.82,6.8630735]
[1718333685128,6.14,147.85,147.82,6.8630735]
[1718333685999,6.14,147.85,147.83,0.34]
[1718333686197,6.14,147.85,147.82,6.8630735]
[1718333686434,116.4469,147.92,147.82,6.8630735]
[1718333686616,6.14,147.85,147.82,6.8630735]
[1718333687521,6.14,147.85,147.83,0.34]
[1718333687718,6.14,147.85,147.83,0.51]
[1718333689800,24.56,147.91,147.83,0.51]
[1718333690132,6.14,147.87,147.83,0.51]
[1718333690927,6.14,147.87,147.84,0.17]
[1718333694415,23.50594763,147.92,147.84,0.34]
[1718333694634,6.14,147.89,147.85,0.51]
[1718333694816,6.14,147.89,147.85,0.34]
[1718333695016,6.14,147.89,147.86,0.34]
[1718333695628,6.14,147.89,147.87,0.34]
[1718333695832,6.14,147.9,147.87,0.34]
[1718333696654,7.05663326,147.95,147.87,0.34]
[1718333696953,6.14,147.9,147.87,0.34]
[1718333698947,20.0,147.94,147.88,0.34]
[1718333699145,6.14,147.92,147.89,0.34]
[1718333700459,6.14,147.93,147.9,0.34]
[1718333700750,6.14,147.94,147.9,0.34]
[1718333701045,7.05622874,147.99,147.91,0.34]
[1718333701248,6.14,147.95,147.92,0.34]
[1718333701426,6.14,147.96,147.92,0.34]
[1718333701973,6.14,147.95,147.92,0.34]
[1718333702425,6.14,147.94,147.91,0.34]
[1718333702731,6.14,147.93,147.91,0.17]
[1718333702932,6.14,147.93,147.91,0.34]
[1718333704045,15.8077,148.0,147.92,0.34]
[1718333704222,6.14,147.95,147.92,0.34]
[1718333704426,6.14,147.95,147.93,0.34]
[1718333705960,6.14,147.95,147.91,16.411]
[1718333706154,6.14,147.94,147.91,16.411]
[1718333707932,6.14,147.93,147.91,16.411]
[1718333708236,6.14,147.92,147.9,0.68]
[1718333708832,6.14,147.92,147.88,0.17]
[1718333709032,124.56,147.98,147.88,0.68]
[1718333709336,6.14,147.92,147.88,0.68]
[1718333710585,124.56,147.98,147.88,0.68]
[1718333710871,6.14,147.92,147.88,0.68]
[1718333712458,6.14,147.93,147.88,0.68]
[1718333714766,115.8077,148.0,147.88,0.68]
[1718333714968,15.8077,148.0,147.9,0.17]
[1718333715144,6.14,147.95,147.9,0.68]
[1718333716942,6.14,147.94,147.9,0.68]
[1718333717970,6.14,147.92,147.87,22.0437]
[1718333718146,124.56,147.98,147.87,28.1837]
[1718333718667,6.14,147.93,147.87,28.1837]
[1718333719266,6.14,147.93,147.88,0.68]
[1718333722474,6.14,147.92,147.88,0.68]
[1718333724774,6.14,147.93,147.88,0.68]
[1718333724954,6.14,147.94,147.88,0.68]
[1718333725270,130.6877,147.98,147.88,0.68]
[1718333725271,6.14,147.92,147.88,0.68]
[1718333725473,6.47333333,147.93,147.88,0.68]
[1718333725771,0.33333333,147.91,147.88,0.68]
[1718333729579,0.33333333,147.91,147.88,6.82]
[1718333729758,0.33333333,147.91,147.9,0.17]
[1718333729963,0.33333333,147.91,147.9,0.68]
[1718333730157,0.33333333,147.91,147.9,6.82]
[1718333730358,6.3475,148.02,147.9,31.8479]
[1718333730568,6.3475,148.02,147.93,6.14]
[1718333730770,6.14,147.99,147.94,0.68]
[1718333730977,6.3475,148.02,147.94,0.68]
[1718333731177,6.14,147.99,147.94,0.68]
[1718333731466,6.3475,148.02,147.94,0.34]
[1718333731467,6.14,147.97,147.94,0.34]
[1718333731663,6.14,147.97,147.91,6.31]
[1718333731983,6.14,147.97,147.93,0.17]
[1718333732975,6.14,147.95,147.92,0.17]
[1718333733276,6.14,147.94,147.9,22.5263]
[1718333734483,6.14,147.94,147.91,0.51]
[1718333734656,24.56,147.98,147.91,0.51]
[1718333735066,20.0,147.97,147.91,0.51]
[1718333735268,6.14,147.94,147.91,0.51]
[1718333735668,6.14,147.95,147.91,0.51]
[1718333736472,6.14,147.95,147.92,0.17]
[1718333736676,6.2379,148.0,147.92,0.17]
[1718333736890,100.0,148.01,147.92,0.17]
[1718333737069,20.0,148.0,147.92,0.17]
[1718333737267,6.14,147.96,147.92,0.17]
[1718333738379,20.0,148.0,147.92,0.17]
[1718333738690,6.14,147.96,147.92,0.17]
[1718333738896,20.0,148.0,147.92,0.17]
[1718333739089,6.14,147.99,147.93,6.31]
[1718333739264,6.14,147.99,147.92,0.17]
[1718333739265,13.74137457,148.03,147.95,0.17]
[1718333739470,6.14,148.0,147.95,0.34]
[1718333739795,15.5961,148.04,147.97,0.17]
[1718333739970,15.5961,148.04,147.97,0.34]
[1718333740175,6.14,148.01,147.97,0.34]
[1718333740365,6.14,148.02,147.99,0.17]
[1718333740567,24.56,148.05,147.99,0.34]
[1718333740792,6.14,148.01,147.99,0.34]
[1718333741295,6.14,148.02,147.99,0.34]
[1718333742402,24.56,148.05,148.01,0.17]
[1718333742403,6.14,148.05,148.01,0.17]
[1718333742584,6.14,148.05,148.01,0.34]
[1718333743698,253.1,148.06,148.01,0.34]
[1718333743875,253.1,148.06,148.03,0.17]
[1718333744080,6.14,148.04,148.02,0.34]
[1718333744297,6.14,148.05,148.02,0.34]
[1718333746605,253.1,148.06,148.03,0.34]
[1718333746606,259.24,148.06,148.03,0.34]
[1718333747486,253.1,148.06,148.03,0.34]
[1718333747798,259.24,148.06,148.03,0.34]
[1718333749502,6.14,148.04,148.02,0.17]
[1718333749803,6.14,148.04,148.01,0.68]
[1718333750603,253.1,148.06,148.01,0.68]
[1718333751103,6.14,148.05,148.01,0.68]
[1718333755807,253.1,148.06,148.01,0.68]
[1718333756010,6.14,148.04,148.01,0.68]
[1718333758899,6.14,148.04,148.0,16.21]
[1718333759208,6.14,148.03,148.0,16.21]
[1718333762709,100.0,148.1,148.01,0.17]